bitfinex-derivatives/quotes_SOLF0:USTF0_20250929
["timestamp","ask_amount","ask_price","bid_price","bid_amount"]
[1759116683541,4.293,209.57,209.53,7.85]
[1759116683835,66.7369,209.71,209.54,80.94]
[1759116684036,8.61260673,209.68,209.57,7.86]
[1759116684337,7.42,209.66,209.62,4.01706985]
[1759116684532,7.42,209.63,209.61,4.01706985]
[1759116684730,7.42,209.63,209.61,6.985e-05]
[1759116684931,7.42,209.62,209.54,13.1948919]
[1759116685136,7.42,209.62,209.54,7.86]
[1759116686535,4.2927,209.59,209.54,7.86]
[1759116686835,7.42,209.58,209.53,5.3348919]
[1759116687040,7.42,209.58,209.54,7.86]
[1759116687438,7.42,209.58,209.53,5.3348919]
[1759116687636,68.94310876,209.65,209.53,5.3348919]
[1759116687637,4.2909,209.67,209.57,4.2929]
[1759116687838,7.42,209.67,209.58,7.86]
[1759116688337,7.42,209.65,209.58,7.86]
[1759116690140,7.42,209.65,209.58,12.1525]
[1759116692546,7.42,209.65,209.58,128.8125]
[1759116693948,11.7109,209.68,209.59,7.86]
[1759116694450,11.7109,209.68,209.59,124.46]
[1759116695339,11.7109,209.68,209.59,7.86]
[1759116696548,4.2911,209.67,209.59,7.86]
[1759116696750,74.1653,209.68,209.56,5.3348919]
[1759116697048,7.42,209.67,209.55,38.64150066]
[1759116697248,66.7453,209.68,209.55,38.64150066]
[1759116697546,4.2917,209.64,209.56,7.86]
[1759116697747,11.7117,209.64,209.56,7.86]
[1759116698348,11.7117,209.64,209.56,13.1948919]
[1759116698745,11.7117,209.64,209.56,7.86]
[1759116699049,7.42,209.64,209.56,9.6277919]
[1759116699245,7.42,209.64,209.57,7.86]
[1759116702553,11.7115,209.64,209.57,7.86]
[1759116703747,11.7115,209.64,209.57,13.1948919]
[1759116703947,11.7115,209.64,209.57,7.86]
[1759116704452,11.7115,209.64,209.57,9.25778228]
[1759116705655,11.7115,209.64,209.57,14.59267418]
[1759116705850,7.42,209.64,209.57,135.38547418]
[1759116706553,7.42,209.64,209.57,18.88547418]
[1759116706854,7.42,209.64,209.57,135.34547418]
[1759116708452,7.42,209.64,209.56,5.3348919]
[1759116708652,7.42,209.64,209.55,11.02597418]
[1759116709053,1.39778228,209.65,209.55,11.02597418]
[1759116709448,7.42,209.64,209.56,5.3348919]
[1759116709655,7.42,209.62,209.56,5.3348919]
[1759116712652,7.42,209.62,209.56,13.1948919]
[1759116716358,4.2919,209.63,209.57,5.3348919]
[1759116716657,7.45,209.62,209.55,130.78267418]
[1759116716856,7.45,209.62,209.56,5.3348919]
[1759116720363,7.45,209.62,209.57,5.3348919]
[1759116720564,7.45,209.64,209.59,5.3348919]
[1759116720762,4.2914,209.65,209.59,5.3348919]
[1759116721256,7.45,209.64,209.59,5.3348919]
[1759116721462,4.2914,209.65,209.59,5.3348919]
[1759116721661,7.45,209.64,209.59,5.3348919]
[1759116722455,4.2914,209.65,209.59,13.0448919]
[1759116723053,7.45,209.64,209.59,13.0448919]
[1759116723258,4.2914,209.65,209.59,13.0448919]
[1759116723453,7.45,209.64,209.59,13.0448919]
[1759116723653,1.39778228,209.64,209.59,5.3348919]
[1759116723860,7.45,209.61,209.56,5.3348919]
[1759116724065,7.45,209.59,209.56,13.0448919]
[1759116725163,11.7424,209.6,209.57,7.71]
[1759116725364,11.7424,209.6,209.57,13.0448919]
[1759116727457,7.45,209.59,209.57,5.3348919]
[1759116727866,4.2927,209.58,209.57,5.3348919]
[1759116728165,7.45,209.57,209.56,5.3348919]
[1759116729164,7.45,209.57,209.55,5.3348919]
[1759116730963,13.14018228,209.6,209.56,13.0448919]
[1759116731167,7.45,209.59,209.56,13.0448919]
[1759116731768,7.45,209.59,209.57,5.3348919]
[1759116732269,7.45,209.59,209.57,13.3048919]
[1759116735066,7.45,209.59,209.57,5.3348919]
[1759116735269,4.2924,209.6,209.56,5.3348919]
[1759116735473,7.78,209.59,209.56,5.3348919]
[1759116736471,4.2924,209.6,209.56,5.3348919]
[1759116736670,7.78,209.59,209.56,5.3348919]
[1759116737065,4.2924,209.6,209.56,5.3348919]
[1759116737269,116.3,209.67,209.56,5.3348919]
[1759116737270,5.69048228,209.59,209.56,5.3348919]
[1759116737471,66.7581,209.64,209.39,0.83037056]
[1759116737472,9.17778228,209.57,209.55,5.3348919]
[1759116737670,7.78,209.56,209.55,5.3348919]
[1759116737972,7.78,209.56,209.5,17.08146116]
[1759116737973,7.78,209.56,209.54,5.3348919]
[1759116738160,1.39778228,209.57,209.54,5.3348919]
[1759116738569,7.78,209.55,209.54,5.3348919]
[1759116738777,4.2931,209.56,209.53,5.3348919]
[1759116739267,7.78,209.55,209.53,5.3348919]
[1759116739474,4.2931,209.56,209.53,5.3348919]
[1759116739677,7.78,209.55,209.53,5.3348919]
[1759116740168,7.78,209.54,209.52,5.3348919]
[1759116740469,5.69128228,209.55,209.52,5.3348919]
[1759116740770,7.78,209.54,209.52,5.3348919]
[1759116740974,1.39778228,209.55,209.52,5.3348919]
[1759116741167,7.78,209.54,209.52,5.3348919]
[1759116741673,1.39778228,209.55,209.52,5.3348919]
[1759116741870,7.78,209.54,209.52,5.3348919]
[1759116742072,1.39778228,209.57,209.53,7.97]
[1759116742281,1.39778228,209.59,209.53,13.3048919]
[1759116742974,7.78,209.6,209.54,5.3348919]
[1759116743170,7.78,209.6,209.56,7.97]
[1759116743371,7.78,209.6,209.57,12.2629]
[1759116743575,9.17778228,209.61,209.57,4.2929]
[1759116743775,9.17778228,209.61,209.58,7.97]
[1759116744276,7.78,209.61,209.58,7.97]
[1759116744873,7.78,209.61,209.6,4.01083119]
[1759116745967,7.79,209.67,209.59,7.82]
[1759116746165,9.18778228,209.66,209.62,11.83072652]
[1759116746367,7.79,209.66,209.63,4.01072652]
[1759116747278,7.79,209.67,209.63,4.01072652]
[1759116747577,9.18778228,209.64,209.63,4.01072652]
[1759116747780,7.79,209.63,209.62,4.01072652]
[1759116755281,7.79,209.63,209.58,9.6274919]
[1759116755477,7.79,209.63,209.59,7.82]
[1759116757677,7.79,209.65,209.58,6.73267418]
[1759116757878,7.79,209.65,209.62,4.01104869]
[1759116758279,1.39778228,209.66,209.62,4.01104869]
[1759116758586,12.0814,209.65,209.62,4.01104869]
[1759116758781,7.79,209.64,209.62,4.01104869]
[1759116763486,7.79,209.64,209.63,4.01104869]
[1759116766095,9.18778228,209.64,209.61,4.01104869]
[1759116766401,7.79,209.66,209.61,4.01104869]
[1759116767598,4.2917,209.63,209.61,4.01104869]
[1759116767798,7.79,209.62,209.61,4.01104869]
[1759116768997,7.79,209.62,209.56,7.82]
[1759116768998,4.2921,209.61,209.6,4.01104869]
[1759116769200,12.0821,209.61,209.6,4.01104869]
[1759116769698,4.2925,209.59,209.58,4.01104869]
[1759116769899,12.0825,209.59,209.58,4.01104869]
[1759116771095,12.0825,209.59,209.56,7.82]
[1759116772299,12.0825,209.59,209.51,2.18479611]
[1759116772300,12.0825,209.59,209.54,5.3348919]
[1759116772494,12.0825,209.59,209.55,7.82]
[1759116772699,7.79,209.59,209.55,7.82]
[1759116773401,7.79,209.59,209.54,5.3348919]
[1759116773597,7.79,209.59,209.55,7.82]
[1759116773803,7.79,209.59,209.55,7.92]
[1759116774103,7.79,209.59,209.54,5.3348919]
[1759116774796,7.63,209.59,209.58,4.01219084]
[1759116781701,4.2927,209.58,209.57,4.01219084]
[1759116781900,11.9227,209.58,209.57,4.01219084]
[1759116782406,7.63,209.58,209.54,7.92]
[1759116782600,7.63,209.58,209.55,7.92]
[1759116783206,7.63,209.58,209.54,5.3348919]
[1759116783604,7.63,209.58,209.55,7.92]
[1759116784111,4.292,209.62,209.55,7.92]
[1759116784313,7.63,209.63,209.6,4.01140451]
[1759116784614,7.63,209.63,209.6,11.93140451]
[1759116785103,7.63,209.63,209.61,4.01140451]
[1759116788013,7.63,209.63,209.62,4.01140451]
[1759116790321,7.63,209.63,209.6,7.92]
[1759116790509,7.63,209.63,209.58,5.3348919]
[1759116790709,4.2919,209.63,209.61,4.0129127]
[1759116791218,7.63,209.62,209.61,4.0129127]
[1759116794016,4.2919,209.63,209.6,4.0129127]
[1759116794321,7.99,209.62,209.6,4.0129127]
[1759116794622,4.2919,209.63,209.6,4.0129127]
[1759116795121,12.2821,209.62,209.6,4.0129127]
[1759116795318,7.99,209.61,209.6,4.0129127]
[1759116797714,4.2923,209.6,209.59,4.0129127]
[1759116797924,12.2823,209.6,209.59,4.0129127]
[1759116798220,12.2823,209.6,209.51,15.70562706]
[1759116798221,7.99,209.59,209.58,4.0129127]
[1759116798818,12.2827,209.58,209.57,4.0129127]
[1759116801523,128.5027,209.58,209.57,4.0129127]
[1759116804423,128.5227,209.58,209.57,4.0129127]
[1759116805323,124.23,209.58,209.52,5.09428892]
[1759116805622,7.74,209.55,209.48,0.29146]
[1759116805924,7.74,209.49,209.48,0.29146]
[1759116806117,123.98,209.49,209.48,6e-05]
[1759116811627,124.46,209.49,209.48,6e-05]
[1759116812633,126.64479611,209.49,209.48,6e-05]
[1759116813523,7.74,209.49,209.48,6e-05]
[1759116813930,124.02,209.49,209.48,6e-05]
[1759116816133,7.74,209.49,209.48,6e-05]
[1759116816432,38.4,209.49,209.48,6e-05]
[1759116817335,30.66,209.49,209.48,6e-05]
[1759116817833,55.48,209.49,209.48,6e-05]
[1759116818430,82.94,209.49,209.48,6e-05]
[1759116818832,7.74,209.52,209.48,6e-05]
[1759116819134,109.02,209.51,209.48,6e-05]
[1759116819437,7.74,209.52,209.48,6e-05]
[1759116819635,116.32,209.51,209.48,6e-05]
[1759116820337,7.74,209.52,209.48,6e-05]
[1759116820541,116.32,209.51,209.48,6e-05]
[1759116820937,7.74,209.52,209.48,6e-05]
[1759116821129,116.32,209.51,209.48,6e-05]
[1759116821333,116.3,209.51,209.48,6e-05]
[1759116823740,116.32,209.51,209.48,6e-05]
[1759116825737,7.74,209.52,209.48,6e-05]
[1759116825942,116.28,209.51,209.48,6e-05]
[1759116826240,116.28,209.51,209.48,1.39945468]
[1759116826541,7.74,209.51,209.48,1.39945468]
[1759116826733,116.28,209.51,209.48,1.39945468]
[1759116826937,7.74,209.5,209.48,1.39945468]
[1759116827543,36.04,209.5,209.48,1.39945468]
[1759116828242,7.74,209.5,209.48,1.39945468]
[1759116833944,7.94,209.59,209.49,7.39]
[1759116834142,7.94,209.57,209.52,1.39939468]
[1759116834335,116.28,209.58,209.52,1.39939468]
[1759116835138,7.94,209.57,209.52,1.39939468]
[1759116835339,116.28,209.58,209.52,1.39939468]
[1759116835546,7.94,209.57,209.52,1.39939468]
[1759116835845,116.28,209.58,209.52,1.39939468]
[1759116836139,7.94,209.57,209.52,1.39939468]
[1759116836639,116.28,209.58,209.52,1.39939468]
[1759116837039,7.94,209.57,209.52,1.39939468]
[1759116837344,116.28,209.58,209.52,1.39939468]
[1759116837542,7.94,209.57,209.52,1.39939468]
[1759116837742,116.28,209.58,209.52,1.39939468]
[1759116838734,7.94,209.57,209.52,1.39939468]
[1759116838938,7.94,209.57,209.54,8.78939468]
[1759116839842,7.94,209.58,209.54,8.78939468]
[1759116840532,116.28,209.59,209.54,1.39939468]
[1759116840746,7.94,209.58,209.54,1.39939468]
[1759116840942,116.28,209.59,209.54,1.39939468]
[1759116841142,7.94,209.58,209.52,1.39939468]
[1759116842045,7.94,209.58,209.51,7.39]
[1759116842243,7.94,209.58,209.54,1.39939468]
[1759116842547,7.94,209.58,209.55,7.39]
[1759116842936,1.39939468,209.64,209.55,7.39]
[1759116843138,41.46,209.63,209.55,7.39]
[1759116843346,41.46,209.63,209.56,1.39939468]
[1759116845549,41.46,209.63,209.56,5.69239468]
[1759116850048,41.46,209.63,209.58,1.39939468]
[1759116850254,7.94,209.62,209.59,7.39]
[1759116854353,33.52,209.63,209.59,7.39]
[1759116855154,7.36,209.62,209.59,7.39]
[1759116856155,33.52,209.63,209.59,7.39]
[1759116856356,7.36,209.62,209.59,7.39]
[1759116856551,33.52,209.63,209.54,22.2575218]
[1759116856758,7.36,209.62,209.53,1.39939468]
[1759116857253,33.52,209.63,209.51,7.69]
[1759116857254,7.36,209.6,209.51,7.69]
[1759116857458,7.36,209.6,209.51,9.08939468]
[1759116857660,7.36,209.6,209.51,13.38349468]
[1759116858955,1.39939468,209.59,209.49,1.39939468]
[1759116859161,7.36,209.56,209.48,7.69]
[1759116859563,7.36,209.56,209.51,7.69]
[1759116859756,7.36,209.56,209.52,1.39939468]
[1759116859952,7.36,209.56,209.52,9.08939468]
[1759116860158,7.36,209.56,209.53,7.69]
[1759116860561,1.39939468,209.58,209.48,1.39939468]
[1759116860760,7.36,209.57,209.48,1.39939468]
[1759116861262,7.36,209.57,209.48,15.92957416]
[1759116861966,1.39939468,209.58,209.48,15.92957416]
[1759116862162,7.36,209.57,209.49,7.69]
[1759116865764,7.36,209.57,209.49,7.94]
[1759116865959,7.36,209.57,209.48,15.92957416]
[1759116865960,7.4,209.61,209.52,7.94]
[1759116867667,7.4,209.61,209.53,4.2936]
[1759116869469,18.14,209.66,209.56,7.94]
[1759116869470,7.4,209.65,209.56,7.94]
[1759116870373,7.4,209.65,209.56,12.233]
[1759116870576,19.53939468,209.66,209.56,12.233]
[1759116870775,7.4,209.65,209.56,12.233]
[1759116871474,7.4,209.65,209.56,13.63239468]
[1759116873068,7.4,209.65,209.57,4.2928]
[1759116873776,7.4,209.65,209.58,7.94]
[1759116884674,7.4,209.65,209.52,7.94]
[1759116884877,7.4,209.62,209.52,9.33939468]
[1759116885179,7.4,209.6,209.52,9.33939468]
[1759116885980,7.4,209.6,209.52,13.63319468]
[1759116886171,7.4,209.6,209.52,5.69319468]
[1759116886377,7.4,209.6,209.53,7.94]
[1759116887581,7.4,209.6,209.53,12.2336]
[1759116887778,7.4,209.6,209.54,1.39939468]
[1759116888179,7.4,209.6,209.55,7.94]
[1759116888383,7.4,209.6,209.54,4.2934]
[1759116891785,7.4,209.65,209.56,7.94]
[1759116891983,7.4,209.63,209.56,7.94]
[1759116895689,7.4,209.63,209.57,7.22]
[1759116897287,48.62,209.66,209.57,7.22]
[1759116897590,8.61245915,209.65,209.57,7.22]
[1759116897790,1.19245915,209.64,209.57,7.22]
[1759116898183,1.19245915,209.64,209.57,11.5129]
[1759116901790,7.42,209.63,209.57,7.22]
[1759116902590,7.42,209.63,209.55,4.2933]
[1759116902591,1.19251528,209.62,209.54,7.22]
[1759116902795,7.42,209.61,209.54,7.22]
[1759116903491,7.42,209.61,209.49,5.32343483]
[1759116903699,7.42,209.59,209.51,7.22]
[1759116904395,7.42,209.57,209.51,7.22]
[1759116909400,7.42,209.55,209.48,14.53017948]
[1759116909598,7.42,209.55,209.47,7.22]
[1759116911803,4.2937,209.54,209.47,7.22]
[1759116912599,7.42,209.55,209.47,7.22]
[1759116914706,7.42,209.55,209.48,7.23]
[1759116914905,11.6228,209.58,209.48,7.23]
[1759116916405,11.6228,209.58,209.48,4.2946]
[1759116916600,11.6228,209.58,209.49,7.23]
[1759116923512,4.2924,209.6,209.5,7.23]
[1759116923810,5.48511877,209.6,209.5,7.23]
[1759116924012,7.3,209.59,209.5,7.23]
[1759116924215,7.3,209.59,209.5,11.5243]
[1759116925014,7.3,209.59,209.5,4.2943]
[1759116925218,7.3,209.59,209.51,7.72]
[1759116928219,4.2928,209.58,209.51,7.72]
[1759116928519,9.48494952,209.61,209.51,7.72]
[1759116928717,7.3,209.59,209.51,7.72]
[1759116929622,4.2931,209.57,209.51,7.72]
[1759116929823,11.5931,209.57,209.51,7.72]
[1759116930121,7.3,209.64,209.51,7.72]
[1759116930322,7.3,209.62,209.51,7.72]
[1759116931624,11.5921,209.62,209.51,4.294]
[1759116931821,7.3,209.62,209.52,9.90494952]
[1759116932127,7.3,209.62,209.53,7.72]
[1759116932733,7.3,209.62,209.54,7.72]
[1759116933523,7.3,209.6,209.5,7.72]
[1759116933727,70.14495959,209.61,209.5,7.72]
[1759116933728,7.3,209.58,209.5,7.72]
[1759116934724,4.2933,209.56,209.5,7.72]
[1759116935228,7.3,209.53,209.47,21.83166323]
[1759116935426,7.3,209.53,209.47,7.72]
[1759116936918,4.2937,209.54,209.47,7.72]
[1759116937121,4.2931,209.57,209.48,7.72]
[1759116944133,4.2931,209.57,209.48,12.0146]
[1759116944335,4.2931,209.57,209.49,7.72]
[1759116944635,4.2926,209.59,209.5,2.18494952]
[1759116944829,8.49272761,209.61,209.51,7.72]
[1759116945132,75.6,209.62,209.54,7.72]
[1759116945529,7.3,209.64,209.54,7.72]
[1759116945734,1.19248538,209.63,209.54,7.72]
[1759116946634,5.48428538,209.63,209.54,7.72]
[1759116947134,5.48428538,209.63,209.54,12.0134]
[1759116947333,5.48428538,209.63,209.55,7.72]
[1759116948425,1.19248538,209.63,209.55,7.72]
[1759116948933,7.3,209.64,209.55,7.72]
[1759116949235,0.81807696,209.67,209.58,7.72]
[1759116949236,5.10907696,209.67,209.58,7.72]
[1759116949432,2.01035586,209.67,209.58,7.72]
[1759116950232,2.01035586,209.67,209.58,9.11767723]
[1759116950725,2.01035586,209.67,209.58,13.41017723]
[1759116951235,0.81807696,209.67,209.58,13.41017723]
[1759116951637,7.3,209.66,209.58,7.72]
[1759116951839,3.40802913,209.67,209.58,7.72]
[1759116951840,7.3,209.64,209.58,7.72]
[1759116952736,11.5915,209.64,209.58,7.72]
[1759116953136,7.3,209.64,209.58,7.72]
[1759116959841,7.51,209.68,209.61,7.3]
[1759116961039,8.90767723,209.68,209.61,7.3]
[1759116961342,4.2912,209.66,209.61,7.3]
[1759116961539,4.2912,209.66,209.59,7.3]
[1759116968236,4.2912,209.66,209.6,1.39767723]
[1759116968438,4.2912,209.66,209.61,7.3]
[1759116969148,11.8012,209.66,209.61,7.3]
[1759116969346,11.8012,209.66,209.6,1.39767723]
[1759116969745,11.8012,209.66,209.61,7.3]
[1759116969948,11.8015,209.65,209.55,116.16]
[1759116970147,11.8015,209.65,209.58,1.39767723]
[1759116970352,11.8015,209.65,209.59,7.3]
[1759116972150,7.51,209.65,209.59,7.3]
[1759116972343,4.2909,209.67,209.59,7.3]
[1759116972543,4.2909,209.67,209.6,1.39767723]
[1759116972844,4.2909,209.67,209.61,7.35]
[1759116974651,7.39,209.68,209.61,7.35]
[1759116975045,7.39,209.68,209.63,1.39767723]
[1759116975247,7.39,209.68,209.64,7.35]
[1759116981457,4.2905,209.69,209.64,7.35]
[1759116981955,7.39,209.68,209.64,7.35]
[1759116982155,4.2905,209.69,209.64,7.35]
[1759116982355,7.39,209.68,209.64,7.35]
[1759116982749,4.2905,209.69,209.64,7.35]
[1759116982956,7.39,209.68,209.64,7.35]
[1759116983160,11.6805,209.69,209.63,8.74767723]
[1759116983661,4.2909,209.68,209.63,8.74767723]
[1759116983859,4.2909,209.68,209.64,7.71]
[1759116983860,7.47,209.67,209.64,7.71]
[1759116984352,7.47,209.67,209.63,1.39767723]
[1759116984659,7.47,209.67,209.64,7.71]
[1759116985556,7.47,209.67,209.63,1.39767723]
[1759116985857,7.47,209.67,209.64,7.71]
[1759116989051,7.47,209.67,209.63,1.39767723]
[1759116989255,7.47,209.67,209.64,7.71]
[1759116990161,7.47,209.72,209.66,7.71]
[1759116990460,7.47,209.75,209.68,7.71]
[1759116990656,7.47,209.73,209.68,7.71]
[1759116990856,1.39767723,209.74,209.65,1.39767723]
[1759116991062,7.47,209.73,209.65,1.39767723]
[1759116991360,7.47,209.73,209.65,9.10767723]
[1759116992564,11.7598,209.73,209.65,9.10767723]
[1759116993363,7.47,209.73,209.65,7.71]
[1759116993562,166.0835,209.75,209.61,4.2921]
[1759116993563,7.47,209.71,209.63,1.39767723]
[1759116994563,11.7602,209.71,209.63,1.39767723]
[1759116996562,4.2904,209.7,209.63,1.39767723]
[1759116997066,7.47,209.69,209.63,1.39767723]
[1759117003674,7.47,209.69,209.65,7.71]
[1759117004073,4.2904,209.7,209.65,7.71]
[1759117004272,7.47,209.69,209.65,7.71]
[1759117004574,4.2904,209.7,209.65,7.71]
[1759117005171,7.47,209.69,209.65,7.71]
[1759117005669,4.2904,209.7,209.65,7.71]
[1759117007381,7.47,209.69,209.65,7.71]
[1759117007681,4.2904,209.7,209.65,7.71]
[1759117007983,7.47,209.69,209.65,7.71]
[1759117008277,4.2904,209.7,209.65,7.71]
[1759117008477,7.47,209.69,209.65,7.71]
[1759117008683,7.47,209.71,209.65,7.71]
[1759117009683,11.7602,209.71,209.65,7.71]
[1759117010782,11.7602,209.71,209.62,4.2919]
[1759117011384,11.7602,209.71,209.63,7.71]
[1759117011678,7.47,209.71,209.6,17.32563483]
[1759117012082,2.18301671,209.72,209.6,17.32563483]
[1759117012286,7.47,209.71,209.6,17.32563483]
[1759117012780,7.47,209.67,209.6,17.32563483]
[1759117013987,7.47,209.67,209.6,12.0022]
[1759117014783,4.2903,209.7,209.61,7.95]
[1759117015092,7.79,209.71,209.62,7.95]
[1759117016188,7.79,209.71,209.64,4.2915]
[1759117016389,7.79,209.71,209.62,7.95]
[1759117017590,7.79,209.71,209.62,12.2418]
[1759117017990,4.2899,209.72,209.62,12.2418]
[1759117018694,7.79,209.71,209.63,4.2916]
[1759117021789,7.79,209.71,209.64,7.95]
[1759117028897,12.0802,209.71,209.64,7.95]
[1759117030396,7.79,209.71,209.64,7.95]
[1759117031893,7.79,209.71,209.65,7.95]
[1759117032095,7.56,209.74,209.65,7.95]
[1759117033296,7.56,209.74,209.65,4.2912]
[1759117033495,7.56,209.74,209.66,7.77]
[1759117040989,19.46,209.76,209.68,7.77]
[1759117043397,19.46,209.76,209.69,7.77]
[1759117043798,7.56,209.76,209.69,7.77]
[1759117045206,7.56,209.76,209.69,21.80797071]
[1759117045702,4.2894,209.75,209.69,21.80797071]
[1759117045904,7.68,209.74,209.69,14.03797071]
[1759117046095,11.9694,209.75,209.69,7.26]
[1759117049306,11.9694,209.75,209.69,21.90719805]
[1759117049908,7.68,209.75,209.69,21.90719805]
[1759117051202,7.68,209.75,209.69,26.19769805]
[1759117054407,7.68,209.75,209.69,18.93769805]
[1759117054607,7.68,209.77,209.7,7.26]
[1759117055003,7.68,209.77,209.7,4.2901]
[1759117055206,7.68,209.77,209.71,7.26]
[1759117072425,7.68,209.77,209.71,11.5499]
[1759117072627,7.68,209.77,209.71,4.2899]
[1759117073029,7.68,209.77,209.72,7.26]
[1759117073218,11.9688,209.78,209.72,7.26]
[1759117073928,7.68,209.78,209.72,7.26]
[1759117079734,11.9688,209.78,209.72,7.26]
[1759117079936,11.9688,209.78,209.7,5.32343483]
[1759117080138,5.684961,209.78,209.69,26.38759805]
[1759117080640,5.684961,209.78,209.69,22.09719805]
[1759117080937,7.96,209.77,209.69,22.09719805]
[1759117081140,5.684961,209.78,209.69,22.09719805]
[1759117081439,7.96,209.77,209.69,22.09719805]
[1759117081938,5.684961,209.78,209.69,22.09719805]
[1759117082241,7.96,209.77,209.69,22.09719805]
[1759117082441,5.684961,209.78,209.69,22.09719805]
[1759117083636,7.96,209.77,209.69,22.09719805]
[1759117084038,5.684961,209.78,209.69,22.09719805]
[1759117084240,7.96,209.77,209.69,22.09719805]
[1759117084542,7.96,209.77,209.69,23.49335905]
[1759117084932,5.684961,209.78,209.69,23.49335905]
[1759117085132,7.96,209.77,209.69,23.49335905]
[1759117087445,7.96,209.77,209.7,7.45]
[1759117088644,7.96,209.77,209.71,7.45]
[1759117091544,7.96,209.77,209.7,5.32343483]
[1759117091846,7.96,209.77,209.71,5.32343483]
[1759117092050,7.96,209.77,209.72,7.25]
[1759117092547,7.96,209.77,209.72,4.2897]
[1759117092750,7.96,209.77,209.73,7.25]
[1759117092945,7.36,209.79,209.73,7.25]
[1759117093350,7.36,209.79,209.73,4.2895]
[1759117093542,4.2883,209.8,209.74,7.25]
[1759117093742,7.36,209.79,209.74,7.25]
[1759117094149,4.2883,209.8,209.73,4.2895]
[1759117094349,7.36,209.79,209.73,11.5395]
[1759117099054,11.6483,209.8,209.74,7.25]
[1759117099958,7.36,209.8,209.74,7.25]
[1759117101062,7.36,209.83,209.76,7.25]
[1759117103855,11.6478,209.83,209.76,7.25]
[1759117104661,4.2879,209.82,209.76,7.25]
[1759117105063,7.27,209.81,209.76,7.25]
[1759117105360,7.27,209.82,209.76,7.25]
[1759117106663,4.2881,209.81,209.76,7.25]
[1759117106858,11.5581,209.81,209.75,7.84]
[1759117107164,7.27,209.81,209.75,7.84]
[1759117114765,7.27,209.81,209.73,5.32343483]
[1759117114971,7.27,209.81,209.72,7.84]
[1759117115169,7.27,209.79,209.72,7.84]
[1759117115563,7.27,209.79,209.72,13.16343483]
[1759117115760,7.27,209.77,209.71,5.32343483]
[1759117115968,1.396161,209.74,209.67,5.32343483]
[1759117116163,5.686661,209.7,209.62,13.16343483]
[1759117116372,7.27,209.69,209.62,22.26033393]
[1759117116669,7.27,209.69,209.62,7.84]
[1759117117964,7.27,209.72,209.65,1.396161]
[1759117118175,7.27,209.75,209.68,7.84]
[1759117119262,11.5593,209.75,209.68,7.84]
[1759117121572,4.2893,209.75,209.7,9.236161]
[1759117122167,7.27,209.74,209.7,9.236161]
[1759117122366,7.27,209.74,209.7,7.84]
[1759117122965,12.955261,209.76,209.7,7.84]
[1759117123570,7.27,209.76,209.7,7.84]
[1759117125277,8.666161,209.76,209.68,1.396161]
[1759117125575,8.666161,209.76,209.67,12.1307]
[1759117125576,7.27,209.75,209.67,12.1307]
[1759117127479,7.27,209.75,209.68,7.84]